fUSD/lending_fUSD_20240521
["ID","MTS","AMOUNT","RATE_DAILY","PERIOD"]
[327610441,1716251484981,-1921.79,0.00039452,6]
[327610442,1716251484991,-1307.45,0.00039452,6]
[327610443,1716251485001,-1484.52,0.00039452,6]
[327610444,1716251485011,-500.0,0.00039452,6]
[327610445,1716251485021,-500.0,0.00039452,6]
[327610446,1716251485031,-762.87,0.00039452,6]
[327610447,1716251485041,-3946.65,0.00039452,6]
[327610448,1716251485051,-878.87,0.00039452,6]
[327610449,1716251485061,-1008.36,0.00039452,6]
[327610450,1716251485071,-536.09,0.00039452,6]
[327610451,1716251485081,-8518.22,0.00039452,6]
[327610452,1716251485091,-3289.63,0.00039452,6]
[327610453,1716251485100,-593.38560207,0.00039452,6]
[327610454,1716251485111,-3025.89,0.00039452,6]
[327610455,1716251485121,-500.0,0.00039452,6]
[327610456,1716251485131,-703.51,0.00039452,6]
[327610457,1716251485141,-773.69,0.00039452,6]
[327610458,1716251485150,-500.0,0.00039452,2]
[327610459,1716251485160,-2157.3,0.00039452,6]
[327610460,1716251485169,-3211.02,0.00039452,6]
[327610461,1716251485179,-705.32,0.00039452,6]
[327610462,1716251485189,-517.86,0.00039452,6]
[327610463,1716251485200,-2351.42,0.00039452,6]
[327610464,1716251485209,-1117.45,0.00039452,6]
[327610465,1716251485219,-981.99,0.00039452,6]
[327610466,1716251485229,-642.14,0.00039452,6]
[327610467,1716251485239,-500.0,0.00039452,6]
[327610468,1716251485248,-500.0,0.00039452,6]
[327610469,1716251485258,-2269.11,0.00039452,6]
[327610470,1716251485267,-500.0,0.00039452,6]
[327610471,1716251485277,-1065.99,0.00039452,6]
[327610472,1716251485288,-1279.14,0.00039452,6]
[327610473,1716251485298,-1568.55,0.00039452,6]
[327610474,1716251485307,-8972.99,0.00039452,6]
[327610475,1716251485318,-500.0,0.00039452,6]
[327610476,1716251485328,-547.00187535,0.00039452,6]
[327610477,1716251485338,-1359.52,0.00039452,6]
[327610478,1716251485348,-500.0,0.00039452,6]
[327610479,1716251485358,-1401.11,0.00039452,6]
[327610480,1716251485368,-847.2,0.00039452,6]
[327610481,1716251485378,-1114.06,0.00039452,6]
[327610482,1716251485387,-500.0,0.00039452,6]
[327610483,1716251485398,-500.0,0.00039452,6]
[327610484,1716251485408,-542.98,0.00039452,6]
[327610485,1716251485419,-677.29,0.00039452,6]
[327610486,1716251485429,-1353.79,0.00039452,6]
[327610487,1716251485439,-841.87,0.00039452,6]
[327610488,1716251485450,-3907.87,0.00039452,6]
[327610489,1716251485459,-4709.21,0.00039452,6]
[327610490,1716251485469,-502.03,0.00039452,6]
[327610491,1716251485478,-1285.86,0.00039452,6]
[327610492,1716251485489,-1162.42,0.00039452,6]
[327610493,1716251485498,-1940.73,0.00039452,6]
[327610494,1716251485509,-1744.52,0.00039452,6]
[327610495,1716251485519,-5203.02,0.00039452,6]
[327610496,1716251485529,-500.0,0.00039452,6]
[327610497,1716251485539,-866.31,0.00039452,6]
[327610498,1716251485549,-2237.01,0.00039452,6]
[327610499,1716251485560,-674.42,0.00039452,6]
[327610500,1716251485570,-733.56,0.00039452,6]
[327610501,1716251485580,-2959.12,0.00039452,6]
[327610502,1716251485590,-2093.66,0.00039452,6]
[327610503,1716251485600,-500.0,0.00039452,6]
[327610504,1716251485609,-500.0,0.00039452,6]
[327610505,1716251485619,-1454.15,0.00039452,6]
[327610506,1716251485629,-1094.1,0.00039452,6]
[327610507,1716251485639,-500.0,0.00039452,6]
[327610508,1716251485650,-578.61892764,0.00039452,6]
[327610509,1716251485660,-684.11,0.00039452,6]
[327610510,1716251485670,-1521.84,0.00039452,6]
[327610511,1716251485681,-686.34,0.00039452,6]
[327610512,1716251485691,-573.81,0.00039452,6]
[327610513,1716251485704,-2152.80165788,0.00039452,6]
[327610514,1716251485719,-1013.19834212,0.00039452,6]
[327610515,1716251485730,-1024.74,0.00039452,6]
[327610516,1716251485740,-1791.89,0.00039452,6]
[327610517,1716251485751,-500.0,0.00039452,6]
[327610518,1716251485765,-5699.46,0.00039452,6]
[327610519,1716251485776,-500.0,0.00039452,6]
[327610520,1716251485786,-3044.47,0.00039452,6]
[327610521,1716251485797,-1672.78,0.00039452,6]
[327610522,1716251485808,-1721.96,0.00039452,6]
[327610523,1716251485819,-500.0,0.00039452,6]
[327610524,1716251485828,-500.0,0.00039452,6]
[327610525,1716251485838,-500.0,0.00039452,6]
[327610526,1716251485848,-500.0,0.00039452,6]
[327610527,1716251485858,-756.61,0.00039452,6]
[327610528,1716251485867,-1479.87,0.00039452,6]
[327610529,1716251485877,-1535.04,0.00039452,6]
[327610530,1716251485887,-500.0,0.00039452,6]
[327610531,1716251485897,-500.0,0.00039452,6]
[327610532,1716251485907,-500.0,0.00039452,6]
[327610533,1716251485918,-1334.59774161,0.00039452,6]
[327610534,1716251485933,-224.99225839,0.00039452,6]
[327610535,1716251485945,-500.0,0.00039452,6]
[327610536,1716251485954,-500.0,0.00039452,6]
[327610537,1716251485963,-617.02,0.00039452,6]
[327610538,1716251485973,-2236.41,0.00039452,6]
[327610539,1716251485984,-2785.16,0.00039452,6]
[327610540,1716251485995,-1404.45580631,0.00039452,6]
[327610541,1716251486009,-3774.96405294,0.00039452,6]
[327610542,1716251486027,-387.7,0.000363,3]
[327610543,1716251486037,-1307.45014075,0.00039452,6]
[327610544,1716251486047,-1311.49124196,0.00039452,6]
[327610545,1716251486075,-387.7,0.000363,3]
[327610546,1716251486085,-151.0,0.00038904,14]
[327610547,1716251486095,-31.14150468,0.00039178,6]
[327610548,1716251486108,-954.52849532,0.00039178,6]
[327610549,1716251486119,-2605.2765621,0.00039452,6]
[327610550,1716251486138,-387.7,0.000363,3]
[327610551,1716251486150,-508.451839,0.00039452,6]
[327610552,1716251487367,458.44,0.00018654,2]
[327610553,1716251489062,1620.22682997,0.00018654,2]
[327610554,1716251491779,162.49317773,0.00018654,10]
[327610555,1716251498355,300.0,0.00016714,2]
[327610556,1716251515431,150.66,0.00013973,2]
[327610557,1716251538571,2328.8843,0.00016714,2]
[327610562,1716251624467,388008.83542454,0.00013,2]
[327610563,1716251624499,1629.68005117,0.00013,2]
[327610564,1716251624526,12000.0,0.00013,2]
[327610565,1716251705059,150.5,0.00019715,15]
[327610566,1716251705667,150.5,0.00019705,15]
[327610567,1716251706220,150.5,0.00019695,15]
[327610574,1716251944997,150.5,0.0001959,15]
[327610575,1716251945475,150.5,0.0001958,15]
[327610576,1716251946009,150.5,0.0001957,15]
[327610579,1716252063239,150.5,0.00019685,15]
[327610580,1716252063907,262.0,0.00019675,15]
[327610586,1716252272869,793.69,0.00025,60]
[327610587,1716252436115,-155.0,0.00012897,2]
[327610588,1716252436136,-794.93067379,0.00012898,2]
[327610605,1716252547088,-1834.0,0.00012899,2]
[327610606,1716252547107,-150.0,0.00012899,2]
[327610607,1716252547126,-150.0,0.00012899,2]
[327610608,1716252547145,-177.87919231,0.000129,2]
[327610609,1716252547166,-2680.40476539,0.000129,2]
[327610610,1716252547187,-7901.3271697,0.000129,2]
[327610611,1716252547208,-202.57159493,0.000129,2]
[327610612,1716252547229,-159.43159867,0.000129,2]
[327610613,1716252547251,-1736.0176783,0.000129,2]
[327610614,1716252547275,-329.30002344,0.000129,2]
[327610615,1716252547295,-318.85600035,0.000129,2]
[327610616,1716252547315,-311.74964206,0.000129,2]
[327610617,1716252547339,-151.73374021,0.0001299,2]
[327610618,1716252547361,-151.73374021,0.0001299,2]
[327610619,1716252547382,-151.73374021,0.0001299,2]
[327610620,1716252547401,-2230.00157091,0.0001299,2]
[327610621,1716252547422,-164.14462552,0.00012998,2]
[327610622,1716252547443,-246.65442859,0.00012998,2]
[327610623,1716252547464,-155.57300848,0.00012998,2]
[327610624,1716252547483,-250.10468562,0.00012998,2]
[327610625,1716252547504,-208.17791052,0.00012998,2]
[327610626,1716252547525,-202.82650177,0.00012998,2]
[327610627,1716252547545,-274.26657988,0.00012998,2]
[327610628,1716252547565,-155.75855554,0.00012998,2]
[327610629,1716252547588,-155.64927657,0.00012998,2]
[327610630,1716252547608,-155.46371053,0.00012998,2]
[327610631,1716252547631,-377.89293188,0.00012999,2]
[327610632,1716252547650,-156.37954986,0.00012999,2]
[327610633,1716252547670,-1108.8358232,0.00012999,2]
[327610634,1716252547691,-155.27839442,0.00012999,2]
[327610635,1716252547712,-241.01013371,0.00012999,2]
[327610636,1716252547732,-155.0,0.00012999,2]
[327610637,1716252547751,-263.61892074,0.00012999,2]
[327610638,1716252547770,-4370.78996106,0.00012999,2]
[327610639,1716252547791,-22873.09454542,0.00013,2]
[327610640,1716252548167,-256143.7,0.00013,2]
[327610641,1716252548202,-72895.522,0.00013,2]
[327610642,1716252571179,-377.88213118,0.00012999,2]
[327610643,1716252571201,-1515.73932621,0.00012999,2]
[327610644,1716252571225,-2049.51774261,0.00013,2]
[327610658,1716252631838,-1157.61272561,0.000129,2]
[327610659,1716252631850,-593.41505923,0.000129,2]
[327610660,1716252631862,-969.42915536,0.000129,2]
[327610661,1716252631997,-185.80232796,0.000129,2]
[327610662,1716252632009,-106.77926168,0.000129,2]
[327610663,1716252632021,-112.75408728,0.000129,2]
[327610664,1716252632030,-2331.51299848,0.000129,2]
[327610665,1716252632042,-4909.8383545,0.000129,2]
[327610666,1716252632053,-308.25450144,0.000129,2]
[327610667,1716252632062,-212.5706669,0.000129,2]
[327610668,1716252632071,-16564.23063701,0.00013,2]
[327610669,1716252632083,-317.946002,0.00013,2]
[327610670,1716252632094,-4000.0,0.00013,2]
[327610671,1716252632106,-2332.32978955,0.00013,2]
[327610672,1716252632118,-713.07366266,0.00013,2]
[327610673,1716252632129,-893.59727248,0.00013,2]
[327610680,1716252632173,-809.73333754,0.00013,2]
[327610683,1716252632185,-580.86539022,0.00013,2]
[327610685,1716252632197,-9906.76646771,0.00013,2]
[327610690,1716252632208,-11102.19670001,0.00013,2]
[327610695,1716252632220,-3813.54667914,0.00013,2]
[327610698,1716252632231,-1784.2093964,0.00013,2]
[327610701,1716252632243,-4453.54152884,0.00013,2]
[327610708,1716252632290,-110.78335016,0.00013,2]
[327610726,1716252638330,-0.11665042,0.00013,2]
[327610727,1716252638343,-2154.48440475,0.00013,2]
[327610728,1716252638368,-339.47772513,0.00013,2]
[327610729,1716252638459,-430917.03780997,0.00013,2]
[327610730,1716252638472,-263971.44247252,0.00013,2]
[327610731,1716252638484,-92539.0183385,0.00013,2]
[327610732,1716252638497,-5695.7437989,0.00013,2]
[327610733,1716252638510,-7895.06281813,0.00013,2]
[327610734,1716252638523,-22930.65628308,0.00013,2]
[327610735,1716252638537,-17890.10860453,0.00013,2]
[327610736,1716252638550,-553.99214024,0.00013,2]
[327610738,1716252640187,-1782229.65116384,0.00013,2]
[327610739,1716252640203,-216943.81848783,0.00013,2]
[327610740,1716252640214,-206.63236322,0.00013,2]
[327610741,1716252640225,-153.41,0.00013973,2]
[327610742,1716252640236,-210.0,0.00014189,2]
[327610743,1716252640247,-2950.0,0.00015,2]
[327610744,1716252640258,-299.99,0.00015,2]
[327610745,1716252640269,-150.99,0.00015,2]
[327610746,1716252640280,-4365.67,0.00015233,2]
[327610747,1716252640291,-499.99,0.00015233,2]
[327610748,1716252640306,-159.43159867,0.00015233,2]
[327610749,1716252640316,-3832.87,0.00015233,2]
[327610750,1716252640327,-151.61,0.00015259,2]
[327610751,1716252640338,-2680.40476535,0.00015355,2]
[327610752,1716252640348,-1736.01767828,0.000159,2]
[327610753,1716252640359,-1310.7,0.00016637,2]
[327610754,1716252640369,-1000.94,0.0001667,2]
[327610755,1716252640381,-7549.60585441,0.00016718,2]
[327610756,1716252640391,-500.0,0.0001693,2]
[327610757,1716252640403,-200.0,0.00016969,2]
[327610758,1716252640413,-3000.82,0.00016984,2]
[327610759,1716252640422,-250.0,0.00017006,2]
[327610760,1716252640432,-151.2,0.00017308,2]
[327610761,1716252640445,-159.43159867,0.00017567,2]
[327610762,1716252640456,-151.2,0.00017609,2]
[327610763,1716252640467,-176.58,0.00017727,2]
[327610764,1716252640477,-2680.40476535,0.00017809,2]
[327610765,1716252640487,-151.2,0.0001791,2]
[327610766,1716252640498,-151.2,0.0001821,2]
[327610767,1716252640508,-169.53,0.0001844,2]
[327610768,1716252640519,-1736.01767828,0.000189,2]
[327610769,1716252640530,-151.61,0.00019169,2]
[327610771,1716252640540,-1310.7,0.00019377,2]
[327610773,1716252640551,-240.32,0.000195,2]
[327610775,1716252640562,-171.41,0.000195,2]
[327610776,1716252640573,-19715.45682378,0.00019695,2]
[327610778,1716252640583,-180.32091532,0.00019695,2]
[327610779,1716252640593,-345.88545334,0.00019695,2]
[327610781,1716252640603,-75987.06451368,0.00019695,2]
[327610783,1716252640613,-792832.26044149,0.000199,3]
[327610785,1716252640624,-159.43159867,0.000199,2]
[327610787,1716252640634,-712.95039844,0.0002,4]
[327610789,1716252640646,-20000.0,0.0002,2]
[327610791,1716252640656,-1262.82225324,0.0002,2]
[327610793,1716252640665,-2680.40476535,0.00020264,2]
[327610795,1716252640675,-7549.60585441,0.00020536,2]
[327610797,1716252640684,-1750.0,0.00021,2]
[327610799,1716252640694,-176.04241858,0.00021873,2]
[327610801,1716252640703,-1736.01767828,0.000219,2]
[327610803,1716252640714,-158.46,0.00021918,2]
[327610805,1716252640724,-2000.0,0.00021918,2]
[327610806,1716252640734,-159.84,0.00021918,2]
[327610807,1716252640902,-1310.7,0.00022117,2]
[327610808,1716252640911,-159.93941133,0.00022378,2]
[327610809,1716252640920,-2680.40476535,0.00022718,2]
[327610810,1716252640930,-151.61,0.00023079,2]
[327610811,1716252640939,-185.72294966,0.0002381,2]
[327610812,1716252640949,-1099.06114114,0.00023887,28]
[327610813,1716252640958,-2520.46542958,0.00024,3]
[327610814,1716252640967,-180.0,0.0002423,2]
[327610815,1716252640976,-7549.60585441,0.00024354,2]
[327610816,1716252640986,-250.0,0.00024658,2]
[327610817,1716252640995,-1736.01767828,0.000249,2]
[327610818,1716252641005,-912.17145006,0.00025,2]
[327610819,1716252641014,-171.41,0.00025,2]
[327610820,1716252641025,-7833.42919323,0.00025,2]
[327610821,1716252641034,-2680.40476535,0.00025173,2]
[327610822,1716252641045,-159.93941133,0.00025382,2]
[327610823,1716252641054,-151.29039193,0.0002636,2]
[327610824,1716252641064,-177.87919231,0.000264,2]
[327610825,1716252641074,-2720.4569402,0.000264,2]
[327610826,1716252641084,-219.53334894,0.000264,2]
[327610827,1716252641093,-212.57066689,0.000264,2]
[327610828,1716252641102,-151.70197261,0.00026874,2]
[327610829,1716252641112,-151.61,0.0002699,2]
[327610830,1716252641121,-1910.24,0.00027397,2]
[327610831,1716252641130,-162.46,0.000274,2]
[327610832,1716252641140,-162.46,0.000274,2]
[327610833,1716252641152,-162.46,0.000274,2]
[327610834,1716252641161,-162.46,0.000274,2]
[327610835,1716252641170,-162.46,0.000274,2]
[327610836,1716252641180,-162.46,0.000274,2]
[327610837,1716252641190,-159.93941133,0.00027437,2]
[327610838,1716252641201,-2680.40476535,0.00027627,2]
[327610839,1716252641211,-1736.01767828,0.000279,2]
[327610840,1716252641221,-7549.60585441,0.00028172,2]
[327610841,1716252641231,-166.08339776,0.00028655,2]
[327610842,1716252641240,-1481.71970581,0.00029,2]
[327610843,1716252641250,-159.93941133,0.00029474,2]
[327610844,1716252641260,-240.32,0.000296,2]
[327610845,1716252641270,-1000.0,0.00029769,2]
[327610846,1716252641279,-2342.31740382,0.0003,4]
[327610847,1716252641289,-159.93941133,0.0003005,7]
[327610848,1716252641299,-277.53,0.00030072,10]
[327610849,1716252641313,-2680.40476535,0.00030082,2]
[327610850,1716252641323,-157.78511448,0.00030101,7]
[327610851,1716252641333,-170.18130385,0.00030203,7]
[327610852,1716252641343,-176.04241858,0.00030548,7]
[327610853,1716252641353,-164.987135,0.00030832,2]
[327610854,1716252641363,-181.271545,0.00030832,2]
[327610855,1716252641372,-485.446123,0.00030832,2]
[327610856,1716252641384,-165.288315,0.00030832,2]
[327610857,1716252641396,-183.91694,0.00030832,2]
[327610858,1716252641406,-1038.294521,0.00030832,2]
[327610859,1716252641415,-485.446123,0.00030832,2]
[327610860,1716252641425,-165.288311,0.00030832,2]
[327610861,1716252641435,-1038.294521,0.00030832,2]
[327610862,1716252641445,-164.987136,0.00030832,2]
[327610863,1716252641455,-183.916938,0.00030832,2]
[327610864,1716252641465,-7901.32716962,0.000309,2]
[327610865,1716252641474,-1736.01767828,0.000309,2]
[327610866,1716252641483,-151.61,0.000309,2]
[327610867,1716252641494,-164.987135,0.00031218,2]
[327610868,1716252641504,-485.446123,0.00031218,2]
[327610869,1716252641513,-1038.294521,0.00031218,2]
[327610870,1716252641523,-485.446123,0.00031218,2]
[327610871,1716252641532,-1038.294521,0.00031218,2]
[327610872,1716252641542,-164.987136,0.00031218,2]
[327610873,1716252641551,-176.04241858,0.0003143,7]
[327610874,1716252641560,-164.987135,0.00031603,2]
[327610875,1716252641570,-485.446123,0.00031603,2]
[327610876,1716252641579,-1038.294521,0.00031603,2]
[327610877,1716252641588,-485.446123,0.00031603,2]
[327610878,1716252641598,-1038.294521,0.00031603,2]
[327610879,1716252641608,-164.987136,0.00031603,2]
[327610880,1716252641617,-159.93941133,0.00031732,7]
[327610881,1716252641627,-164.987135,0.00031988,2]
[327610882,1716252641636,-485.446123,0.00031988,2]
[327610883,1716252641648,-1038.294521,0.00031988,2]
[327610884,1716252641658,-485.446123,0.00031988,2]
[327610885,1716252641666,-1038.294521,0.00031988,2]
[327610886,1716252641676,-164.987136,0.00031988,2]
[327610887,1716252641685,-7549.60585441,0.0003199,2]
[327610888,1716252641695,-1000.0,0.00032026,2]
[327610889,1716252641704,-164.987135,0.00032374,2]
[327610890,1716252641714,-485.446123,0.00032374,2]
[327610891,1716252641724,-1038.294521,0.00032374,2]
[327610892,1716252641733,-485.446123,0.00032374,2]
[327610893,1716252641742,-1038.294521,0.00032374,2]
[327610894,1716252641751,-164.987136,0.00032374,2]
[327610895,1716252641760,-2680.40476535,0.00032536,4]
[327610896,1716252641770,-164.0,0.000329,10]
[327610897,1716252641779,-1140.73575905,0.000335,2]
[327610898,1716252641789,-510.73,0.000335,2]
[327610899,1716252641798,-510.73,0.000335,2]
[327610900,1716252641807,-510.73,0.000335,2]
[327610901,1716252641817,-510.73,0.000335,2]
[327610902,1716252641826,-510.73,0.000335,2]
[327610903,1716252641836,-510.73,0.000335,2]
[327610904,1716252641845,-510.73,0.000335,2]
[327610905,1716252641854,-510.73,0.000335,2]
[327610906,1716252641864,-510.73,0.000335,2]
[327610907,1716252641874,-510.73,0.000335,2]
[327610908,1716252641883,-510.73,0.000335,2]
[327610909,1716252641892,-510.73,0.000335,2]
[327610910,1716252641902,-510.73,0.000335,2]
[327610911,1716252641911,-510.73,0.000335,2]
[327610912,1716252641920,-510.73,0.000335,2]
[327610913,1716252641930,-510.73,0.000335,2]
[327610914,1716252641939,-510.73,0.000335,2]
[327610915,1716252641949,-510.73,0.000335,2]
[327610916,1716252641959,-510.73,0.000335,2]
[327610917,1716252641969,-510.73,0.000335,2]
[327610918,1716252641978,-159.93941133,0.000335,7]
[327610919,1716252641988,-2500.0,0.000338,13]
[327610920,1716252641998,-3000.0,0.00033887,5]
[327610921,1716252642007,-2500.0,0.00033887,3]
[327610922,1716252642016,-2700.0,0.00033887,5]
[327610923,1716252642026,-2500.0,0.00033887,5]
[327610924,1716252642036,-2200.0,0.00033887,3]
[327610925,1716252642045,-348.0151477,0.00033887,2]
[327610926,1716252642055,-7901.32716962,0.000339,2]
[327610927,1716252642064,-1736.01767828,0.000339,2]
[327610928,1716252642073,-250.559,0.00034,2]
[327610929,1716252642083,-159.93941133,0.00034312,7]
[327610930,1716252642092,-1000.0,0.0003461,2]
[327610931,1716252642102,-151.61,0.0003481,2]
[327610932,1716252642111,-500.0,0.000349,2]
[327610933,1716252642121,-2680.40476535,0.00034991,7]
[327610934,1716252642131,-1153.56314517,0.00035,4]
[327610935,1716252642140,-213.76976792,0.00035,120]
[327610936,1716252642152,-20000.0,0.00035,30]
[327610937,1716252642162,-166.08339776,0.00035121,7]
[327610938,1716252642171,-240.32,0.000355,2]
[327610939,1716252642180,-1033.09089348,0.000356,30]
[327610940,1716252642190,-150.0,0.00035616,2]
[327610941,1716252642199,-7549.60585441,0.00035808,2]
[327610942,1716252642209,-1000.0,0.00036029,2]
[327610943,1716252642218,-500.0,0.00036164,2]
[327610944,1716252642227,-185.72294966,0.00036294,7]
[327610945,1716252642237,-1708.24860845,0.00036298,4]
[327610946,1716252642247,-510.73,0.000363,3]
[327610947,1716252642257,-510.73,0.000363,3]
[327610948,1716252642266,-510.73,0.000363,3]
[327610949,1716252642275,-510.73,0.000363,3]
[327610950,1716252642284,-510.73,0.000363,3]
[327610951,1716252642293,-510.73,0.000363,3]
[327610952,1716252642304,-510.73,0.000363,3]
[327610953,1716252642317,-510.73,0.000363,3]
[327610954,1716252642327,-510.73,0.000363,3]
[327610955,1716252642337,-510.73,0.000363,3]
[327610956,1716252642348,-510.73,0.000363,3]
[327610957,1716252642358,-510.73,0.000363,3]
[327610958,1716252642368,-510.73,0.000363,3]
[327610959,1716252642378,-510.73,0.000363,3]
[327610960,1716252642389,-510.73,0.000363,3]
[327610961,1716252642400,-510.73,0.000363,3]
[327610962,1716252642409,-510.73,0.000363,3]
[327610963,1716252642418,-510.73,0.000363,3]
[327610964,1716252642427,-510.73,0.000363,3]
[327610965,1716252642436,-510.73,0.000363,3]
[327610966,1716252642446,-1116.527,0.0003633,2]
[327610967,1716252642455,-288.0,0.0003633,2]
[327610968,1716252642465,-739.248,0.0003633,2]
[327610969,1716252642474,-182.588,0.0003633,2]
[327610970,1716252642483,-150.0,0.0003633,2]
[327610971,1716252642493,-500.0,0.00036437,10]
[327610972,1716252642503,-500.0,0.00036437,10]
[327610973,1716252642512,-500.0,0.00036437,10]
[327610974,1716252642521,-500.0,0.00036437,10]
[327610975,1716252642530,-150.0,0.00036554,2]
[327610976,1716252642540,-7901.32716962,0.000369,2]
[327610977,1716252642549,-1736.01767828,0.000369,2]
[327610978,1716252642559,-155.16654335,0.00036915,7]
[327610979,1716252642569,-2680.40476535,0.00037445,10]
[327610980,1716252642578,-150.0,0.00037491,2]
[327610981,1716252642587,-500.0,0.00037533,10]
[327610982,1716252642597,-151.70197262,0.00037704,7]
[327610983,1716252642606,-173.052109,0.00037748,42]
[327610984,1716252642615,-17291.51166892,0.00037998,61]
[327610985,1716252642625,-3536.0,0.00038,10]
[327610986,1716252642635,-157.54,0.00038027,30]
[327610987,1716252642645,-240.32,0.000381,2]
[327610989,1716252642654,-159.93941138,0.00038164,7]
[327610990,1716252642664,-8203.4437,0.000382,10]
[327610992,1716252642673,-150.0,0.00038211,120]
[327610994,1716252642683,-77301.7592,0.00038254,2]
[327610996,1716252642692,-17817.2709,0.00038254,2]
[327610998,1716252642702,-137440.0562,0.00038254,2]
[327610999,1716252642711,-1706.5889,0.00038254,2]
[327611001,1716252642721,-500.0,0.00038256,2]
[327611003,1716252642730,-166.08339776,0.0003826,7]
[327611005,1716252642739,-3578.90368179,0.00038319,4]
[327611007,1716252642749,-373.97275012,0.00038352,4]
[327611009,1716252642758,-263.06023858,0.00038352,4]
[327611011,1716252642768,-162.56418292,0.00038352,4]
[327611013,1716252642777,-7171.84907073,0.00038352,4]
[327611015,1716252642786,-5687.24550343,0.00038352,2]
[327611016,1716252642795,-364.18725345,0.00038352,4]
[327611018,1716252642805,-1247.47877474,0.00038352,4]
[327611020,1716252642815,-250.44520229,0.00038352,4]
[327611022,1716252642824,-2540.99575335,0.00038352,4]
[327611023,1716252642833,-219.31968758,0.00038353,4]
[327611024,1716252642843,-155.0,0.00038353,4]
[327611025,1716252642852,-5000.0,0.00038353,7]
[327611026,1716252642861,-725.84811922,0.00038354,4]
[327611027,1716252642871,-182098.7295032,0.00038354,4]
[327611029,1716252642880,-3060.46122056,0.00038354,4]
[327611030,1716252642890,-155.0,0.00038354,4]
[327611032,1716252642901,-936.8170768,0.00038354,4]
[327611033,1716252642910,-150.0,0.00038355,2]
[327611035,1716252642919,-217.91282524,0.00038356,6]
[327611036,1716252642928,-387.66247867,0.00038356,6]
[327611038,1716252642938,-153.88080458,0.00038356,6]
[327611039,1716252642947,-203.29973538,0.00038356,6]
[327611041,1716252642956,-669.2,0.00038356,6]
[327611042,1716252642966,-500.0,0.00038356,6]
[327611044,1716252642976,-500.0,0.00038356,6]
[327611045,1716252642985,-500.0,0.00038356,6]
[327611046,1716252642995,-975.26,0.00038356,6]
[327611048,1716252643004,-1115.3,0.00038356,6]
[327611049,1716252643014,-508.18,0.00038356,6]
[327611051,1716252643023,-500.0,0.00038356,6]
[327611052,1716252643033,-617.02,0.00038356,6]
[327611053,1716252643042,-500.0,0.00038356,6]
[327611054,1716252643051,-500.0,0.00038356,6]
[327611055,1716252643060,-500.0,0.00038356,6]
[327611056,1716252643070,-597.74,0.00038356,6]
[327611057,1716252643079,-500.0,0.00038356,6]
[327611058,1716252643089,-500.0,0.00038356,6]
[327611059,1716252643098,-500.0,0.00038356,6]
[327611060,1716252643108,-877.96,0.00038356,6]
[327611061,1716252643117,-500.0,0.00038356,6]
[327611062,1716252643127,-573.27,0.00038356,6]
[327611063,1716252643136,-500.0,0.00038356,6]
[327611064,1716252643147,-500.0,0.00038356,6]
[327611065,1716252643157,-500.0,0.00038356,6]
[327611066,1716252643166,-500.0,0.00038356,6]
[327611067,1716252643176,-500.0,0.00038356,6]
[327611068,1716252643185,-500.0,0.00038356,6]
[327611069,1716252643194,-366.17852157,0.00038356,6]
[327611070,1716252643204,-500.0,0.00038356,6]
[327611071,1716252643213,-500.0,0.00038356,6]
[327611072,1716252643223,-500.0,0.00038356,6]